{"text_format":"1","workbook":"xlsx","n_sheets":1,"sheets":["2020년 유치원 방과후 과정 수요조사"],"not_rendered":{"charts":0,"images":0,"macros":1,"external_links":0,"defined_names":12,"comments":0,"pivot_tables":0},"unopened":[],"bounds":{"document_bytes":16777216,"sheet_cells":100000,"rows_first":2000,"rows_last":500,"rows_between":2000,"halvings":0,"cell_chars":16384,"cell_head_chars":4096},"cells_cut":0,"cells_raw":0,"read":"whole","date_system":"1900"}

{"sheet":"2020년 유치원 방과후 과정 수요조사","index":0,"n_rows":6,"n_cols":28,"rows_kept":6,"cut":false,"hidden":false,"merged":[[0,0,0,33],[2,0,3,0],[2,1,2,4],[2,21,3,21],[2,24,2,27],[2,5,2,8],[2,9,2,14],[2,15,2,20],[2,22,3,22],[1,0,1,33]]}
["    2020 방과후 과정 수요 조사(유치원데이터 취합)"]
["  <작성시 유의사항>\n\n  1. 1): 방학중 근무자, 2) 방학중 비근무자: 예산 배정을 위한 기초자료이므로 교육지원청 시간별 근무자 수 및 방학중 근무자와 방학중 비근무자 수를 정확히 입력\n  2. 3)계: 지원청별 방과후전담사 정원, 현원과 일치여부 확인, 추가증원 수(신증설, 임시강사 전환배치 등) 반영 여부 반드시 확인 \n  3. 4)비고: 2020년 신증설 사유 입력 (예: 1명/00유 0학급 신설 등/ 3.1자/9.1자)                    \n     - 2020 신증설 채용예정인원 누락되지 않도록 유의 (2020년 상하반기 방과후 과정 신증설포함 학급수와 동일한지 확인후 입력)\n  4. 4)검증값 : 검정값이 F일 경우 2020 방과후 전담사 수와 1), 2) 수 확인할 것 재점검 요망\n  5. 5)2020 방과후 과정 시간 운영: 시간연장에 따른 지원 방안 모색을 위한 기초자료로 활용, 시간연장의 경우 수요조사, 유치원 교원 및 방과후전담사 협의 결과 등을 반영하여 입력\n     - 단위: 유치원 기관수 1로 입력, 방과후 학급별로 운영시간이 다르다 하더라도 가장 늦게까지 운영하는 학급수에 맞추어 1로 입력바람 (예: 방과후학급 3학급 중 2학급은 기존유지, 1학급은 1시간 연장 희망일경우 1시간 연장에 1로 입력)"]
["유치원명","2019 방과후 과정 학급 및 인력 현황",null,null,null,"2020 방과후 과정 학급 및 인력 현황",null,null,null,"1) 2020 방과후전담사 수 (방학중 근무자)\n  (2019 전담사 수+2020년 신증설 추가 전담사 수)\n단위: 명",null,null,null,null,null,"2) 2020 방과후전담사 수 (방학중 비근무자)\n  (2019 전담사 수+2020년 신증설 추가 전담사 수)\n단위: 명",null,null,null,null,null,"3) 계","4)검증값","4) 비고","5) 2020 방과후 과정 운영 시간"]
[null,"유치원\n일반 \n학급수","방과후 과정학급수","임시강사수","방과후\n전담사수","유치원\n일반 \n학급수","방과후 과정\n학급수","임시강사\n수","방과후\n전담사수","4시간\n근무자 수","5시간\n근무자 수","6시간\n근무자 수","7시간\n근무자 수","8시간\n근무자 수","계","4시간\n근무자 수","5시간\n근무자 수","6시간\n근무자 수","7시간\n근무자 수","8시간\n근무자 수","계",null,null,"전담사 수 증가 사유","17시까지","18시까지","19시까지","19시초과 "]
["소계",{"$f":"SUBTOTAL(9,B6:B1960)","v":1},{"$f":"SUBTOTAL(9,C6:C1960)","v":1},{"$f":"SUBTOTAL(9,D6:D1960)","v":0},{"$f":"SUBTOTAL(9,E6:E1960)","v":1},{"$f":"SUBTOTAL(9,F6:F1960)","v":1},{"$f":"SUBTOTAL(9,G6:G1960)","v":1},{"$f":"SUBTOTAL(9,H6:H1960)","v":0},{"$f":"SUBTOTAL(9,I6:I1960)","v":1},{"$f":"SUBTOTAL(9,J6:J1960)","v":0},{"$f":"SUBTOTAL(9,K6:K1960)","v":0},{"$f":"SUBTOTAL(9,L6:L1960)","v":0},{"$f":"SUBTOTAL(9,M6:M1960)","v":0},{"$f":"SUBTOTAL(9,N6:N1960)","v":0},{"$f":"SUM(J5:N5)","v":0},{"$f":"SUBTOTAL(9,P6:P1960)","v":0},{"$f":"SUBTOTAL(9,Q6:Q1960)","v":0},{"$f":"SUBTOTAL(9,R6:R1960)","v":1},{"$f":"SUBTOTAL(9,S6:S1960)","v":0},{"$f":"SUBTOTAL(9,T6:T1960)","v":0},{"$f":"SUM(P5:T5)","v":1},{"$f":"O5+U5","v":1},{"$f":"IF(I5=V5,\"T\",\"F\")","v":"T"}]
["진말초병설유",1,1,0,1,1,1,0,1,0,0,0,0,0,{"$f":"SUM(J6:N6)","v":0},null,null,1,null,null,{"$f":"SUM(P6:T6)","v":1},{"$f":"O6+U6","v":1},{"$f":"IF(I6=V6,\"T\",\"F\")","v":"T"},"해당없음",1]